[Event "*** Titled Tuesday Blitz"]
[Site "Chess.com"]
[Date "2018.12.04"]
[Round "8"]
[White "ChainsOfFantasia"]
[Black "chessking2151"]
[Result "0-1"]
[WhiteElo "2383"]
[BlackElo "2554"]
[TimeControl "180+2"]
[EndTime "14:50:56 PST"]
[Termination "chessking2151 won by resignation"]

1. d4 {[%clk 0:03:01.9]} 1... d5 {[%clk 0:02:59.9]} 2. c4 {[%clk 0:03:03]} 2...
e6 {[%clk 0:03:00.6]} 3. Nf3 {[%clk 0:03:04.5]} 3... Nf6 {[%clk 0:03:01.4]} 4.
Nc3 {[%clk 0:03:05.8]} 4... c6 {[%clk 0:03:02.9]} 5. e3 {[%clk 0:03:06.2]} 5...
Nbd7 {[%clk 0:03:04.3]} 6. Qc2 {[%clk 0:03:07.6]} 6... Be7 {[%clk 0:03:04.8]} 7.
Bd3 {[%clk 0:03:09]} 7... dxc4 {[%clk 0:03:01.2]} 8. Bxc4 {[%clk 0:03:10.9]}
8... b5 {[%clk 0:03:02.6]} 9. Bd3 {[%clk 0:03:10.3]} 9... a6 {[%clk 0:03:03.8]}
10. O-O {[%clk 0:03:11]} 10... c5 {[%clk 0:02:57.5]} 11. e4 {[%clk 0:03:03.7]}
11... cxd4 {[%clk 0:02:55.7]} 12. e5 {[%clk 0:02:41.3]} 12... dxc3 {[%clk
0:02:44.3]} 13. exf6 {[%clk 0:02:42.4]} 13... Nxf6 {[%clk 0:02:41.6]} 14. a4
{[%clk 0:02:37.9]} 14... Bd7 {[%clk 0:02:08.3]} 15. axb5 {[%clk 0:02:31.7]}
15... Bxb5 {[%clk 0:02:06]} 16. Rd1 {[%clk 0:02:22.5]} 16... Bxd3 {[%clk
0:02:03.4]} 17. Rxd3 {[%clk 0:02:24.4]} 17... Qb8 {[%clk 0:02:04.4]} 18. Rxc3
{[%clk 0:02:19.1]} 18... O-O {[%clk 0:02:05.6]} 19. h3 {[%clk 0:02:12.7]} 19...
Nd5 {[%clk 0:02:05.8]} 20. Rb3 {[%clk 0:02:09.2]} 20... Qa7 {[%clk 0:02:06.7]}
21. Bg5 {[%clk 0:02:07.7]} 21... Rac8 {[%clk 0:02:04.1]} 22. Qd3 {[%clk
0:02:04.6]} 22... Bxg5 {[%clk 0:01:46.4]} 23. Nxg5 {[%clk 0:02:06.5]} 23... g6
{[%clk 0:01:47]} 24. Rxa6 {[%clk 0:02:00.7]} 24... Rc1+ {[%clk 0:01:47.5]} 25.
Kh2 {[%clk 0:02:01.7]} 25... Qxf2 {[%clk 0:01:47.7]} 26. Nf3 {[%clk 0:01:40.1]}
26... Rc2 {[%clk 0:01:44.8]} 27. Ne1 {[%clk 0:01:25.8]} 27... Re2 {[%clk
0:01:44.6]} 28. Qf3 {[%clk 0:00:51.4]} 28... Qxe1 {[%clk 0:01:39.7]} 29. Ra7
{[%clk 0:00:51.9]} 29... Rf2 {[%clk 0:01:34.9]} 30. Qg3 {[%clk 0:00:47.7]} 30...
Nf4 {[%clk 0:01:25.9]} 0-1

[Event "*** Titled Tuesday Blitz"]
[Site "Chess.com"]
[Date "2018.12.04"]
[Round "8"]
[White "nubair1198"]
[Black "LonesomeGeorge1"]
[Result "1-0"]
[WhiteElo "2615"]
[BlackElo "2429"]
[TimeControl "180+2"]
[EndTime "14:51:31 PST"]
[Termination "nubair1198 won by resignation"]

1. d4 {[%clk 0:03:01.9]} 1... Nf6 {[%clk 0:03:00.6]} 2. c4 {[%clk 0:03:03.3]}
2... g6 {[%clk 0:03:01.6]} 3. Nc3 {[%clk 0:03:04.8]} 3... Bg7 {[%clk 0:03:02.8]}
4. e4 {[%clk 0:03:06.1]} 4... d6 {[%clk 0:03:04.4]} 5. Nf3 {[%clk 0:03:06.7]}
5... O-O {[%clk 0:03:05.9]} 6. Be2 {[%clk 0:03:08.1]} 6... Nbd7 {[%clk
0:03:07.3]} 7. O-O {[%clk 0:03:09.7]} 7... e5 {[%clk 0:03:08.3]} 8. Be3 {[%clk
0:03:11.3]} 8... Re8 {[%clk 0:03:08.6]} 9. d5 {[%clk 0:03:12.1]} 9... Nh5 {[%clk
0:03:07.1]} 10. Re1 {[%clk 0:03:07.4]} 10... Bf8 {[%clk 0:03:05.9]} 11. b4
{[%clk 0:03:05]} 11... Ng7 {[%clk 0:03:05.4]} 12. a4 {[%clk 0:02:51.6]} 12... f5
{[%clk 0:03:03]} 13. g3 {[%clk 0:02:52.5]} 13... Nf6 {[%clk 0:03:01.1]} 14. Qc2
{[%clk 0:02:47.3]} 14... Be7 {[%clk 0:03:00]} 15. Ng5 {[%clk 0:02:46.7]} 15...
Rf8 {[%clk 0:02:57.3]} 16. c5 {[%clk 0:02:46.1]} 16... fxe4 {[%clk 0:02:46.9]}
17. Ngxe4 {[%clk 0:02:45.6]} 17... Ng4 {[%clk 0:02:46.6]} 18. cxd6 {[%clk
0:02:28.6]} 18... cxd6 {[%clk 0:02:37.4]} 19. Bd2 {[%clk 0:02:28.2]} 19... Bf5
{[%clk 0:02:27]} 20. Bf1 {[%clk 0:02:15.8]} 20... Nxf2 {[%clk 0:02:20.7]} 21.
Bh6 {[%clk 0:02:14.7]} 21... Ng4 {[%clk 0:02:15.2]} 22. Qd2 {[%clk 0:02:15.5]}
22... Nxh6 {[%clk 0:02:11]} 23. Qxh6 {[%clk 0:02:17.4]} 23... Qb6+ {[%clk
0:02:04.6]} 24. Qe3 {[%clk 0:02:14.6]} 24... Qxb4 {[%clk 0:01:45.9]} 25. Rab1
{[%clk 0:02:15.3]} 25... Qa5 {[%clk 0:01:39.8]} 26. Rxb7 {[%clk 0:02:16.5]}
26... Bd8 {[%clk 0:01:21.5]} 27. Qh6 {[%clk 0:02:11.3]} 27... Bb6+ {[%clk
0:01:20.9]} 28. Kh1 {[%clk 0:02:12.7]} 28... Bxe4+ {[%clk 0:01:02.2]} 29. Nxe4
{[%clk 0:02:12]} 29... Bc7 {[%clk 0:00:55.6]} 30. Ng5 {[%clk 0:01:56.8]} 30...
Rxf1+ {[%clk 0:00:39.1]} 31. Rxf1 {[%clk 0:01:58.7]} 31... Qxd5+ {[%clk
0:00:39.8]} 32. Rf3 {[%clk 0:02:00.3]} 32... Qd1+ {[%clk 0:00:12.9]} 33. Kg2
{[%clk 0:02:00.5]} 33... Qe2+ {[%clk 0:00:08.2]} 34. Kh3 {[%clk 0:02:00.8]}
34... Qxf3 {[%clk 0:00:09.3]} 35. Qxh7+ {[%clk 0:02:00.8]} 35... Kf8 {[%clk
0:00:10.5]} 36. Qh8+ {[%clk 0:02:01.6]} 36... Ke7 {[%clk 0:00:11.7]} 37. Qxg7+
{[%clk 0:02:03.1]} 37... Ke8 {[%clk 0:00:12.8]} 1-0

[Event "*** Titled Tuesday Blitz"]
[Site "Chess.com"]
[Date "2018.12.04"]
[Round "8"]
[White "akretchetov"]
[Black "evgenyermolaev"]
[Result "0-1"]
[WhiteElo "2375"]
[BlackElo "2430"]
[TimeControl "180+2"]
[EndTime "14:51:46 PST"]
[Termination "evgenyermolaev won by resignation"]

1. Nf3 {[%clk 0:02:59.7]} 1... Nf6 {[%clk 0:02:58.5]} 2. c4 {[%clk 0:02:59.9]}
2... g6 {[%clk 0:02:57.9]} 3. Nc3 {[%clk 0:03:00.7]} 3... Bg7 {[%clk 0:02:59.4]}
4. e4 {[%clk 0:03:01.1]} 4... d6 {[%clk 0:03:00.9]} 5. d4 {[%clk 0:03:02.5]}
5... O-O {[%clk 0:03:02.1]} 6. h3 {[%clk 0:03:04.1]} 6... c5 {[%clk 0:03:02.6]}
7. d5 {[%clk 0:03:04.4]} 7... e6 {[%clk 0:03:03.7]} 8. Bd3 {[%clk 0:03:04.5]}
8... exd5 {[%clk 0:03:04.8]} 9. exd5 {[%clk 0:03:05.4]} 9... Re8+ {[%clk
0:03:06.3]} 10. Be3 {[%clk 0:03:06.1]} 10... Rxe3+ {[%clk 0:03:07.9]} 11. fxe3
{[%clk 0:03:05.8]} 11... Qe7 {[%clk 0:03:09.6]} 12. Qe2 {[%clk 0:02:56.9]} 12...
Nh5 {[%clk 0:03:01.5]} 13. Qf2 {[%clk 0:02:51.3]} 13... Nd7 {[%clk 0:03:03]} 14.
O-O {[%clk 0:02:45.4]} 14... Ne5 {[%clk 0:02:53.2]} 15. Nxe5 {[%clk 0:02:33.6]}
15... Bxe5 {[%clk 0:02:54.5]} 16. Rab1 {[%clk 0:02:18.1]} 16... Bd7 {[%clk
0:02:39.5]} 17. Ne2 {[%clk 0:01:46.4]} 17... a5 {[%clk 0:02:33.7]} 18. g4 {[%clk
0:01:27.1]} 18... Nf6 {[%clk 0:02:07]} 19. Ng3 {[%clk 0:01:20.1]} 19... Bxg4
{[%clk 0:01:33.2]} 20. hxg4 {[%clk 0:01:13.2]} 20... Nxg4 {[%clk 0:01:35.1]} 21.
Qg2 {[%clk 0:00:48.3]} 21... Nxe3 {[%clk 0:01:26.2]} 22. Qf3 {[%clk 0:00:46.1]}
22... Qh4 {[%clk 0:01:09.5]} 23. Qxe3 {[%clk 0:00:33.8]} 23... Bd4 {[%clk
0:01:10.3]} 24. Qxd4 {[%clk 0:00:32.4]} 24... Qxd4+ {[%clk 0:01:10.7]} 25. Kg2
{[%clk 0:00:32.2]} 25... Qxd3 {[%clk 0:01:11.7]} 26. Rbe1 {[%clk 0:00:30.9]}
26... Qxc4 {[%clk 0:01:09.9]} 27. Ne4 {[%clk 0:00:27.6]} 27... Qxd5 {[%clk
0:01:07.8]} 28. Kg3 {[%clk 0:00:27.5]} 28... Kg7 {[%clk 0:01:05.3]} 29. Nf6
{[%clk 0:00:25.7]} 29... Qg5+ {[%clk 0:01:06.4]} 30. Kh2 {[%clk 0:00:25.6]}
30... Qxf6 {[%clk 0:01:06.1]} 0-1

[Event "*** Titled Tuesday Blitz"]
[Site "Chess.com"]
[Date "2018.12.04"]
[Round "8"]
[White "m3alam"]
[Black "AdrianaNikolova"]
[Result "1-0"]
[WhiteElo "2181"]
[BlackElo "2350"]
[TimeControl "180+2"]
[EndTime "14:51:47 PST"]
[Termination "m3alam won by resignation"]

1. d4 {[%clk 0:03:01.9]} 1... Nf6 {[%clk 0:03:00]} 2. Nf3 {[%clk 0:03:02.8]}
2... e6 {[%clk 0:03:01.2]} 3. g3 {[%clk 0:03:04.1]} 3... c5 {[%clk 0:03:02.6]}
4. Bg2 {[%clk 0:03:05.7]} 4... Nc6 {[%clk 0:03:04]} 5. O-O {[%clk 0:03:06.9]}
5... cxd4 {[%clk 0:03:05.4]} 6. Nxd4 {[%clk 0:03:07.8]} 6... d5 {[%clk
0:03:07.3]} 7. c4 {[%clk 0:03:07.8]} 7... Bc5 {[%clk 0:03:07.7]} 8. Nxc6 {[%clk
0:03:07.5]} 8... bxc6 {[%clk 0:03:09]} 9. Qc2 {[%clk 0:03:09.4]} 9... Qe7 {[%clk
0:03:08.8]} 10. Bg5 {[%clk 0:03:09]} 10... Bd6 {[%clk 0:03:05.6]} 11. cxd5
{[%clk 0:03:05]} 11... O-O {[%clk 0:02:56.6]} 12. dxc6 {[%clk 0:03:02.7]} 12...
Rb8 {[%clk 0:02:54.9]} 13. Nc3 {[%clk 0:02:58.6]} 13... Ba6 {[%clk 0:02:54.2]}
14. Ne4 {[%clk 0:02:58.3]} 14... Be5 {[%clk 0:02:54.3]} 15. Rab1 {[%clk
0:02:43.5]} 15... Rfc8 {[%clk 0:02:50.1]} 16. Rfc1 {[%clk 0:02:38.1]} 16... h6
{[%clk 0:02:40.9]} 17. Nxf6+ {[%clk 0:02:36.9]} 17... Bxf6 {[%clk 0:02:40.1]}
18. Bxf6 {[%clk 0:02:36.9]} 18... Qxf6 {[%clk 0:02:42]} 19. b4 {[%clk
0:02:29.2]} 19... Qe5 {[%clk 0:02:31.5]} 20. a4 {[%clk 0:02:25.3]} 20... Qxe2
{[%clk 0:02:12.5]} 21. b5 {[%clk 0:02:20.8]} 21... Qxc2 {[%clk 0:02:12.5]} 22.
Rxc2 {[%clk 0:02:20.2]} 22... Rc7 {[%clk 0:02:14]} 23. Rd1 {[%clk 0:02:10.8]}
23... Bc8 {[%clk 0:02:12.2]} 24. Rd8+ {[%clk 0:02:10.6]} 24... Kh7 {[%clk
0:02:11.4]} 25. Be4+ {[%clk 0:02:03.2]} 25... g6 {[%clk 0:02:08]} 26. h4 {[%clk
0:02:00.5]} 26... Kg7 {[%clk 0:02:06.5]} 27. Rcd2 {[%clk 0:01:58.8]} 27... f5
{[%clk 0:01:41.1]} 28. Bf3 {[%clk 0:01:50.6]} 28... Kf6 {[%clk 0:01:41.4]} 29.
Rh8 {[%clk 0:01:49]} 29... a6 {[%clk 0:01:37.4]} 30. Rdd8 {[%clk 0:01:41]} 30...
axb5 {[%clk 0:01:31.6]} 31. axb5 {[%clk 0:01:42.9]} 31... g5 {[%clk 0:01:21.8]}
32. Rxh6+ {[%clk 0:01:39.3]} 32... Kg7 {[%clk 0:01:21.9]} 33. hxg5 {[%clk
0:01:23.9]} 33... Rxb5 {[%clk 0:01:22.6]} 34. Rdh8 {[%clk 0:01:11.6]} 34... Rf7
{[%clk 0:01:02.9]} 35. Bh5 {[%clk 0:01:08.9]} 35... Rb1+ {[%clk 0:00:55.2]} 36.
Kg2 {[%clk 0:01:07.1]} 1-0

[Event "*** Titled Tuesday Blitz"]
[Site "Chess.com"]
[Date "2018.12.04"]
[Round "8"]
[White "severomorskij"]
[Black "Bigfish1995"]
[Result "1-0"]
[WhiteElo "2770"]
[BlackElo "2988"]
[TimeControl "180+2"]
[EndTime "14:51:49 PST"]
[Termination "severomorskij won by resignation"]

1. d4 {[%clk 0:03:01.9]} 1... Nf6 {[%clk 0:03:00.2]} 2. Bg5 {[%clk 0:03:02.8]}
2... g6 {[%clk 0:03:00.7]} 3. Bxf6 {[%clk 0:03:03.4]} 3... exf6 {[%clk
0:03:01.5]} 4. c4 {[%clk 0:03:05]} 4... Bg7 {[%clk 0:03:01.8]} 5. Nc3 {[%clk
0:03:06.5]} 5... O-O {[%clk 0:03:02.7]} 6. e3 {[%clk 0:03:07.8]} 6... f5 {[%clk
0:03:01]} 7. g3 {[%clk 0:03:09]} 7... d6 {[%clk 0:03:01.4]} 8. Bg2 {[%clk
0:03:10.2]} 8... Nd7 {[%clk 0:03:02.2]} 9. Nge2 {[%clk 0:03:11.3]} 9... Nf6
{[%clk 0:03:02.8]} 10. O-O {[%clk 0:03:12.3]} 10... Re8 {[%clk 0:03:03.8]} 11.
Qd3 {[%clk 0:03:12.5]} 11... h5 {[%clk 0:03:04.8]} 12. b4 {[%clk 0:03:13.5]}
12... h4 {[%clk 0:03:05]} 13. b5 {[%clk 0:03:14.7]} 13... hxg3 {[%clk
0:03:05.5]} 14. hxg3 {[%clk 0:03:15.4]} 14... Ng4 {[%clk 0:03:04]} 15. a4 {[%clk
0:03:14.4]} 15... Qg5 {[%clk 0:03:04.7]} 16. Nd5 {[%clk 0:02:44.2]} 16... Qd8
{[%clk 0:03:02.9]} 17. a5 {[%clk 0:02:38.8]} 17... Rb8 {[%clk 0:02:54.4]} 18.
Nb4 {[%clk 0:02:04]} 18... Bh6 {[%clk 0:01:33.5]} 19. Nf4 {[%clk 0:01:45.2]}
19... g5 {[%clk 0:01:28]} 20. Nfd5 {[%clk 0:01:43.2]} 20... Bd7 {[%clk
0:01:11.8]} 21. a6 {[%clk 0:01:44.1]} 21... c5 {[%clk 0:01:03.8]} 22. axb7
{[%clk 0:01:22.1]} 22... cxb4 {[%clk 0:01:02.5]} 23. Nxb4 {[%clk 0:01:22.2]}
23... f4 {[%clk 0:00:57.4]} 24. exf4 {[%clk 0:01:20.4]} 24... gxf4 {[%clk
0:00:58.2]} 25. Na6 {[%clk 0:01:17.2]} 25... fxg3 {[%clk 0:00:50.7]} 26. Qxg3
{[%clk 0:01:15.3]} 26... Rxb7 {[%clk 0:00:22.7]} 27. Bxb7 {[%clk 0:01:14.4]}
27... Qf6 {[%clk 0:00:23.8]} 28. Nc7 {[%clk 0:01:09]} 28... Bf4 {[%clk
0:00:23.8]} 29. Nd5 {[%clk 0:01:07]} 29... Bxg3 {[%clk 0:00:11.1]} 30. Nxf6+
{[%clk 0:01:07.4]} 30... Nxf6 {[%clk 0:00:13]} 31. fxg3 {[%clk 0:01:08.5]} 31...
Nh5 {[%clk 0:00:14.9]} 32. Bd5 {[%clk 0:01:05.9]} 1-0

[Event "*** Titled Tuesday Blitz"]
[Site "Chess.com"]
[Date "2018.12.04"]
[Round "8"]
[White "Panchenko_Dmitry"]
[Black "sergiochess83"]
[Result "1-0"]
[WhiteElo "2566"]
[BlackElo "2756"]
[TimeControl "180+2"]
[EndTime "14:52:01 PST"]
[Termination "Panchenko_Dmitry won by resignation"]

1. e4 {[%clk 0:03:01.9]} 1... c5 {[%clk 0:03:00]} 2. Nf3 {[%clk 0:02:59.5]} 2...
d6 {[%clk 0:03:00.5]} 3. d4 {[%clk 0:02:59.6]} 3... cxd4 {[%clk 0:03:01.3]} 4.
Nxd4 {[%clk 0:03:01.5]} 4... Nf6 {[%clk 0:03:02]} 5. Nc3 {[%clk 0:03:02.5]} 5...
a6 {[%clk 0:03:03.2]} 6. Be3 {[%clk 0:03:02.6]} 6... e6 {[%clk 0:03:01.1]} 7.
Be2 {[%clk 0:03:03]} 7... Qc7 {[%clk 0:02:57]} 8. Qd2 {[%clk 0:03:03.6]} 8... b5
{[%clk 0:02:57.7]} 9. f3 {[%clk 0:02:59.2]} 9... Nbd7 {[%clk 0:02:48.9]} 10.
O-O-O {[%clk 0:02:52.8]} 10... h5 {[%clk 0:02:48]} 11. Kb1 {[%clk 0:02:47.8]}
11... Ne5 {[%clk 0:02:39.7]} 12. Ndxb5 {[%clk 0:02:42.8]} 12... axb5 {[%clk
0:02:39]} 13. Nxb5 {[%clk 0:02:44.2]} 13... Qb8 {[%clk 0:02:28.8]} 14. Nxd6+
{[%clk 0:02:44.1]} 14... Bxd6 {[%clk 0:02:29.2]} 15. Qxd6 {[%clk 0:02:46]} 15...
Qxd6 {[%clk 0:02:28.8]} 16. Rxd6 {[%clk 0:02:47.9]} 16... Bd7 {[%clk 0:02:18]}
17. Rhd1 {[%clk 0:02:44.8]} 17... Rc8 {[%clk 0:01:54.4]} 18. Bd4 {[%clk
0:02:37.1]} 18... Ba4 {[%clk 0:01:09]} 19. b3 {[%clk 0:02:35.8]} 19... Nc6
{[%clk 0:00:42.5]} 20. bxa4 {[%clk 0:02:20.2]} 20... Nxd4 {[%clk 0:00:43.5]} 21.
R6xd4 {[%clk 0:02:15.2]} 21... Ke7 {[%clk 0:00:41.9]} 22. Bb5 {[%clk 0:02:13.5]}
22... e5 {[%clk 0:00:41.4]} 23. Rd6 {[%clk 0:02:08.1]} 23... h4 {[%clk
0:00:41.3]} 24. h3 {[%clk 0:02:05.1]} 24... Rc7 {[%clk 0:00:42.3]} 25. a5 {[%clk
0:02:02.2]} 25... Ra8 {[%clk 0:00:36.5]} 26. a6 {[%clk 0:02:01.3]} 26... Raa7
{[%clk 0:00:36.3]} 27. a4 {[%clk 0:02:01]} 27... Nh5 {[%clk 0:00:30.1]} 28. Rd8
{[%clk 0:01:53.7]} 28... Nf4 {[%clk 0:00:28.5]} 29. Re8+ {[%clk 0:01:51.6]}
29... Kf6 {[%clk 0:00:29.2]} 30. Rd6+ {[%clk 0:01:49.2]} 30... Ne6 {[%clk
0:00:30.3]} 31. Rb6 {[%clk 0:01:42.9]} 31... Kg5 {[%clk 0:00:30.6]} 32. Rexe6
{[%clk 0:01:36]} 32... fxe6 {[%clk 0:00:31.3]} 33. Rxe6 {[%clk 0:01:37.6]} 33...
Kf4 {[%clk 0:00:30.8]} 34. Rg6 {[%clk 0:01:38.4]} 34... Ke3 {[%clk 0:00:31.1]}
35. Kb2 {[%clk 0:01:33.8]} 35... Ra8 {[%clk 0:00:15.1]} 36. Kb3 {[%clk
0:01:33.1]} 36... Rd8 {[%clk 0:00:14.8]} 37. c4 {[%clk 0:01:33.5]} 37... Rd2
{[%clk 0:00:13.3]} 38. Kb4 {[%clk 0:01:33.6]} 1-0

[Event "*** Titled Tuesday Blitz"]
[Site "Chess.com"]
[Date "2018.12.04"]
[Round "8"]
[White "Godzillator"]
[Black "cool4chess"]
[Result "1-0"]
[WhiteElo "2372"]
[BlackElo "2246"]
[TimeControl "180+2"]
[EndTime "14:52:01 PST"]
[Termination "Godzillator won by resignation"]

1. d4 {[%clk 0:03:01.9]} 1... d5 {[%clk 0:03:00.5]} 2. c4 {[%clk 0:03:03.2]}
2... c6 {[%clk 0:03:01.8]} 3. cxd5 {[%clk 0:03:04.6]} 3... cxd5 {[%clk
0:03:03.7]} 4. Bf4 {[%clk 0:03:05.7]} 4... Nf6 {[%clk 0:03:04.3]} 5. Nc3 {[%clk
0:03:06.5]} 5... Nc6 {[%clk 0:03:05.8]} 6. e3 {[%clk 0:03:07.8]} 6... Bf5 {[%clk
0:03:07.4]} 7. Qb3 {[%clk 0:03:07.9]} 7... Na5 {[%clk 0:03:07.5]} 8. Qa4+ {[%clk
0:03:09]} 8... Bd7 {[%clk 0:03:08.7]} 9. Qc2 {[%clk 0:03:10.4]} 9... e6 {[%clk
0:03:06.9]} 10. Bd3 {[%clk 0:03:11.6]} 10... Rc8 {[%clk 0:03:07.8]} 11. Nf3
{[%clk 0:03:11.8]} 11... Nc6 {[%clk 0:03:06.9]} 12. a3 {[%clk 0:03:12]} 12...
Be7 {[%clk 0:03:08.4]} 13. h3 {[%clk 0:03:12.5]} 13... O-O {[%clk 0:03:10]} 14.
O-O {[%clk 0:03:13.5]} 14... h6 {[%clk 0:03:10.1]} 15. Qe2 {[%clk 0:03:12.7]}
15... Na5 {[%clk 0:03:08.4]} 16. Nd2 {[%clk 0:03:12.4]} 16... a6 {[%clk
0:02:49.5]} 17. Rfc1 {[%clk 0:03:08.4]} 17... b5 {[%clk 0:02:46.7]} 18. a4
{[%clk 0:03:09.5]} 18... Nc4 {[%clk 0:02:35.6]} 19. axb5 {[%clk 0:03:10.2]}
19... axb5 {[%clk 0:02:37.3]} 20. b3 {[%clk 0:03:11.3]} 20... Nxd2 {[%clk
0:02:32.4]} 21. Qxd2 {[%clk 0:03:10.8]} 21... Bb4 {[%clk 0:02:31.9]} 22. Qb2
{[%clk 0:03:10.3]} 22... Qb6 {[%clk 0:02:33.3]} 23. Na2 {[%clk 0:03:03.2]} 23...
Bd6 {[%clk 0:02:25.5]} 24. Bxd6 {[%clk 0:02:55.7]} 24... Qxd6 {[%clk 0:02:27.4]}
25. b4 {[%clk 0:02:55.5]} 25... Rfd8 {[%clk 0:01:50.7]} 26. Rc5 {[%clk
0:02:55.4]} 26... Qb6 {[%clk 0:01:42.1]} 27. Rac1 {[%clk 0:02:53.4]} 27... Bc6
{[%clk 0:01:33.6]} 28. Qc2 {[%clk 0:02:50.2]} 28... Rd6 {[%clk 0:01:02.3]} 29.
Bxb5 {[%clk 0:02:45.5]} 29... Nd7 {[%clk 0:00:48.8]} 30. Rxc6 {[%clk 0:02:35.7]}
30... Rdxc6 {[%clk 0:00:46.6]} 31. Bxc6 {[%clk 0:02:36.8]} 31... Nb8 {[%clk
0:00:46.7]} 32. b5 {[%clk 0:02:36]} 32... Qa5 {[%clk 0:00:46.1]} 33. Qb2 {[%clk
0:02:25.4]} 33... Qb6 {[%clk 0:00:45.7]} 34. Nb4 {[%clk 0:02:19.1]} 34... Rc7
{[%clk 0:00:43.5]} 35. Nd3 {[%clk 0:02:14.6]} 35... Ra7 {[%clk 0:00:38.8]} 36.
Qc3 {[%clk 0:02:09.9]} 36... Rc7 {[%clk 0:00:32]} 37. Qc5 {[%clk 0:02:10]} 37...
Qa5 {[%clk 0:00:30.1]} 38. b6 {[%clk 0:01:48.5]} 38... Qxc5 {[%clk 0:00:32]} 39.
bxc7 {[%clk 0:01:39]} 39... Qf8 {[%clk 0:00:25.3]} 40. Bb7 {[%clk 0:01:26.7]}
1-0

[Event "*** Titled Tuesday Blitz"]
[Site "Chess.com"]
[Date "2018.12.04"]
[Round "8"]
[White "Yurovskykh_Oleksandr"]
[Black "SerGo055"]
[Result "1/2-1/2"]
[WhiteElo "2488"]
[BlackElo "2456"]
[TimeControl "180+2"]
[EndTime "14:52:04 PST"]
[Termination "Game drawn - insufficient material"]

1. d4 {[%clk 0:03:00.8]} 1... Nf6 {[%clk 0:03:00.5]} 2. Bg5 {[%clk 0:03:01.9]}
2... d5 {[%clk 0:03:00.1]} 3. Bxf6 {[%clk 0:03:03.1]} 3... gxf6 {[%clk
0:03:01.3]} 4. c4 {[%clk 0:03:04.3]} 4... c6 {[%clk 0:03:01]} 5. e3 {[%clk
0:03:05.1]} 5... Bf5 {[%clk 0:03:01.5]} 6. Nc3 {[%clk 0:03:06.6]} 6... e6 {[%clk
0:03:02.2]} 7. Nge2 {[%clk 0:03:07.6]} 7... h5 {[%clk 0:03:02.5]} 8. Ng3 {[%clk
0:03:08.7]} 8... Bg6 {[%clk 0:03:02.9]} 9. h4 {[%clk 0:03:10]} 9... Nd7 {[%clk
0:03:01.8]} 10. cxd5 {[%clk 0:03:10.4]} 10... cxd5 {[%clk 0:02:59.1]} 11. Be2
{[%clk 0:03:11.9]} 11... Bd6 {[%clk 0:02:59.6]} 12. Nxh5 {[%clk 0:03:11.6]}
12... Qb6 {[%clk 0:02:53]} 13. Nf4 {[%clk 0:02:30.8]} 13... Bxf4 {[%clk
0:02:47.9]} 14. exf4 {[%clk 0:02:32.7]} 14... Qxb2 {[%clk 0:02:48.4]} 15. Qc1
{[%clk 0:02:34.3]} 15... Qxc1+ {[%clk 0:02:40.4]} 16. Rxc1 {[%clk 0:02:36.2]}
16... Rc8 {[%clk 0:02:41.4]} 17. Kd2 {[%clk 0:02:35.1]} 17... Nb6 {[%clk
0:02:41.5]} 18. g3 {[%clk 0:02:35.3]} 18... Ke7 {[%clk 0:02:38.9]} 19. h5 {[%clk
0:01:50.8]} 19... Bh7 {[%clk 0:02:29.3]} 20. g4 {[%clk 0:01:51.4]} 20... Nc4+
{[%clk 0:02:28.3]} 21. Bxc4 {[%clk 0:01:52.1]} 21... Rxc4 {[%clk 0:02:28.9]} 22.
Ne2 {[%clk 0:01:49.4]} 22... Rhc8 {[%clk 0:02:26.6]} 23. Rxc4 {[%clk 0:01:44.5]}
23... dxc4 {[%clk 0:02:27.1]} 24. Rc1 {[%clk 0:01:46.2]} 24... b5 {[%clk
0:02:27.5]} 25. a3 {[%clk 0:01:47.1]} 25... a5 {[%clk 0:02:24.8]} 26. Kc3 {[%clk
0:01:48.5]} 26... Bd3 {[%clk 0:02:22.9]} 27. Re1 {[%clk 0:01:27.4]} 27... Rb8
{[%clk 0:02:22.7]} 28. Nc1 {[%clk 0:01:28.2]} 28... b4+ {[%clk 0:02:23.4]} 29.
axb4 {[%clk 0:01:28.1]} 29... axb4+ {[%clk 0:02:23.5]} 30. Kb2 {[%clk 0:01:28]}
30... Bh7 {[%clk 0:02:09]} 31. d5 {[%clk 0:01:27.6]} 31... Kd6 {[%clk
0:02:07.9]} 32. dxe6 {[%clk 0:01:28.7]} 32... fxe6 {[%clk 0:02:09.3]} 33. g5
{[%clk 0:01:30.4]} 33... fxg5 {[%clk 0:01:50.7]} 34. fxg5 {[%clk 0:01:32.3]}
34... Rf8 {[%clk 0:01:48.6]} 35. g6 {[%clk 0:01:26.9]} 35... Rxf2+ {[%clk
0:01:16.4]} 36. Re2 {[%clk 0:01:27.7]} 36... Rxe2+ {[%clk 0:00:37.2]} 37. Nxe2
{[%clk 0:01:29.6]} 37... Bxg6 {[%clk 0:00:38.8]} 38. hxg6 {[%clk 0:01:29.2]}
38... Ke7 {[%clk 0:00:39.9]} 39. Nd4 {[%clk 0:01:24]} 39... Kf6 {[%clk
0:00:34.8]} 40. g7 {[%clk 0:01:24.4]} 40... Kxg7 {[%clk 0:00:35.7]} 41. Nxe6+
{[%clk 0:01:25.8]} 41... Kf6 {[%clk 0:00:37.3]} 42. Nc7 {[%clk 0:01:24.2]} 42...
Ke5 {[%clk 0:00:37.5]} 43. Na6 {[%clk 0:01:25.4]} 43... b3 {[%clk 0:00:38.1]}
44. Kc3 {[%clk 0:01:26.4]} 44... Ke4 {[%clk 0:00:36.9]} 45. Nc5+ {[%clk
0:01:27.5]} 45... Ke3 {[%clk 0:00:38.2]} 46. Nxb3 {[%clk 0:01:29.4]} 46... cxb3
{[%clk 0:00:39.4]} 47. Kxb3 {[%clk 0:01:31.3]} 1/2-1/2